Workbook

Sheet Absorption
C2: Modificar células com fundo branco só!
C5: Características da fase gás | I5: Características da coluna
C6: Pressão parcial de CO2 | D6: 0.89 | E6: bar | F6: =D6*100000 -> 89000 | G6: Pa | I6: Diâmetro | J6: 0.05 | K6: m
C7: Vazão de gás | D7: 100 | E7: mL/min | F7: =(D7*0.000001)/60 -> 1.666666667e-06 | G7: m3/s | I7: Altura do leito | J7: 0.65 | K7: m
C8: Vazão molar de gás | D8: =F7*(1000/24.4) -> 6.830601093e-05 | E8: mole/s | I8: Seção transversal | J8: =(PI()/4)*J6^2 -> 0.001963495408 | K8: m2
C11: Características da fase líquida | I11: Dados fisico-químicos
C12: Vazão de líquido | D12: 20 | E12: ml/min | F12: =D12*(0.000001/60) -> 3.333333333e-07 | G12: m3/s | I12: Coeficiente de difusão do CO2 | J12: 1.8e-09 | K12: m2/s
C13: Concentração de NaOH no topo | D13: 0.1 | E13: mole/L | F13: =D13*1000 -> 100 | G13: mole/m3 | I13: CO2 Henry constant | J13: 3039 | K13: Pa·m3/mole
C14: Concentração de NaOH no fundo | D14: 0.0419 | E14: mole/L | F14: =D14*1000 -> 41.9 | G14: mole/m3 | I14: NaOH diffusion coefficient | J14: 3.06e-09 | K14: m2/s
C15: Concentração total no líquido | D15: 55.56 | E15: mole/L | F15: =D15*1000 -> 55560 | G15: mole/m3
C16: Vazão molar de inerte no líquido | D16: =D12*0.001*D15 -> 1.1112 | E16: mole/min | F16: =D16/60 -> 0.01852 | G16: mole/s
C17: Velocidade mássica do líquido | D17: =((F16*(18/1000))/J8) -> 0.1697788539 | E17: Kg/m2·s
E22: GÁS: SAÍDA | I22: LÍQUIDO: ENTRADA
E23: Vazão de gás | F23: =F43-(J43/(2*F15))*(J24-J44) -> 5.86226776e-05 | G23: mole/s | I23: Vazão de líquido inerte | J23: =F16 -> 0.01852 | K23: mole/s
E24: Pressão parcial de CO2 | F24: =0.88*101300 -> 89144 | G24: Pa | I24: Concentração de NaOH | J24: =F13 -> 100 | K24: mole/m3
M25: Nó | N25: Posição / m | O25: CNaOH/mol/m3 | P25: CO2 removido / ml/min
M26: 0 | N26: =$J$7*(M26/15) -> 0 | O26: =F13 -> 100 | P26: =(($F$16/(2*$F$15))*(O26-$O$41))*60*24420 -> 14.18802
M27: 1 | N27: =$J$7*(M27/15) -> 0.04333333333 | O27: 94.36573421 | P27: 12.81213229
M28: 2 | N28: 0.08666666667 | O28: 89.04891669 | P28: 11.51376545
C29: DADOS A CALCULAR | M29: 3 | N29: 0.13 | O29: 84.03166165 | P29: 10.28855177
C30: kl·a / s-1 | D30: =((F16*J12)/(J8*F15*J14*J7))*LN((2*J12+J13*J14*F13)/(2*J12+J13*J14*F14)) -> 0.0001336427548 | M30: 4 | N30: 0.1733333333 | O30: 79.29709099 | P30: 9.132369619
C31: kl·a / h-1 | D31: =D30*3600 -> 0.4811139174 | M31: 5 | N31: 0.2166666667 | O31: 74.8292776 | P31: 8.041329589
M32: 6 | N32: 0.26 | O32: 70.61319172 | P32: 7.011761416
M33: 7 | N33: 0.3033333333 | O33: 66.6346504 | P33: 6.040201626
M34: 8 | N34: 0.3466666667 | O34: 62.88026981 | P34: 5.123381885
M35: 9 | N35: 0.39 | O35: 59.33742017 | P35: 4.258218005
M36: 10 | N36: 0.4333333333 | O36: 55.99418333 | P36: 3.441799569
M37: 11 | N37: 0.4766666667 | O37: 52.83931262 | P37: 2.671380139
M38: 12 | N38: 0.52 | O38: 49.86219501 | P38: 1.94436802
M39: 13 | N39: 0.5633333333 | O39: 47.05281548 | P39: 1.258317538
M40: 14 | N40: 0.6066666667 | O40: 44.40172324 | P40: 0.6109208134
M41: 15 | N41: 0.65 | O41: 41.90000001 | P41: =(($F$16/(2*$F$15))*(O41-$O$41))*60*24420 -> 0
E42: GÁS: ENTRADA | I42: LÍQUIDO: SAÍDA
E43: Vazão de gás | F43: =D8 -> 6.830601093e-05 | G43: mole/s | I43: Vazão de líquido inerte | J43: =F16 -> 0.01852 | K43: mole/s
E44: Pressão parcial de CO2 | F44: =0.88*101300 -> 89144 | G44: Pa | I44: Concentração de NaOH | J44: =F14 -> 41.9 | K44: mole/m3
